Workbook

Sheet SWEEP
B1: X1 | C1: X2 | D1: X3 | E1: Y | G1: CORRELATION | H1: =MMULT(TRANSPOSE(B24:E40),B24:E40)/17 -> 1 | I1: 0.4078033022 | J1: -0.3485678797 | K1: 0.6480945267 | M1: SUMMARY OUTPUT (Y on X1)
B2: 2 | C2: 1 | D2: 8 | E2: 16 | G2: MATRIX, R = | H2: 0.4078033022 | I2: 1 | J2: -0.157988948 | K2: -0.2901868366
B3: 6 | C3: 9 | D3: 5 | E3: 6 | G3: R2 = 1 - 1 = 0 | H3: -0.3485678797 | I3: -0.157988948 | J3: 1 | K3: 0.02447504668 | M3: Regression Statistics
B4: 8 | C4: 3 | D4: 1 | E4: 15 | G4: Sweep IN X1 first | H4: 0.6480945267 | I4: -0.2901868366 | J4: 0.02447504668 | K4: 1 | M4: Multiple R | N4: 0.6480945267
B5: 7 | C5: 6 | D5: 8 | E5: 16 | M5: R Square | N5: 0.4200265156
B6: 4 | C6: 2 | D6: 5 | E6: 15 | G6: X1 has been swept in, | H6: =H1 -> 1 | I6: =I1 -> 0.4078033022 | J6: -0.3485678797 | K6: 0.6480945267 | M6: Adjusted R Square | N6: 0.3813616166
B7: 9 | C7: 8 | D7: 3 | E7: 17 | G7: Model: Y on X1 | H7: =-H2 -> -0.4078033022 | I7: =I2-I$1*$H2 -> 0.8336964667 | J7: =J2-J$1*$H2 -> -0.01584181562 | K7: -0.5544819247 | M7: Standard Error | N7: 5.275379572
B8: 1 | C8: 5 | D8: 6 | E8: 1 | G8: R2 = 1 - .5800 = .4200 | H8: =-H3 -> 0.3485678797 | I8: =I3-I$1*$H3 -> -0.01584181562 | J8: 0.8785004333 | K8: 0.2503799817 | M8: Observations | N8: 17
B9: 6 | C9: 4 | D9: 7 | E9: 14 | G9: Now sweep IN X2 | H9: -0.6480945267 | I9: -0.5544819247 | J9: 0.2503799817 | K9: 0.5799734844
B10: 8 | C10: 7 | D10: 4 | E10: 17 | M10: ANOVA
B11: 5 | C11: 3 | D11: 9 | E11: 15 | G11: X1 and X2 have now been swept in | H11: =H6-$I6*H$7*(1/$I$7) -> 1.199477316 | I11: =-(1/$I$7)*I6 -> -0.4891508103 | J11: =J6-$I6*J$7*(1/$I$7) -> -0.3408188427 | K11: 0.9193198095 | N11: df | O11: SS | P11: MS | Q11: F | R11: Significance F
B12: 9 | C12: 2 | D12: 5 | E12: 25 | G12: Model: Y on X1 & X2 | H12: =(1/$I$7)*H7 -> -0.4891508103 | I12: =1/I7 -> 1.199477316 | J12: =(1/$I$7)*J7 -> -0.01900189848 | K12: -0.6650884907 | M12: Regression | N12: 1 | O12: 302.3202614 | P12: 302.3202614 | Q12: 10.86325134 | R12: 0.004899476371
B13: 3 | C13: 4 | D13: 1 | E13: 5 | G13: R2 = 1 - .2112 = .7888 | H13: =H8-$I8*H$7*(1/$I$7) -> 0.3408188427 | I13: =-(1/$I$7)*I8 -> 0.01900189848 | J13: =J8-$I8*J$7*(1/$I$7) -> 0.8781994087 | K13: =K8-$I8*K$7*(1/$I$7) -> 0.2398437724 | M13: Residual | N13: 15 | O13: 417.4444444 | P13: 27.82962963
B14: 1 | C14: 1 | D14: 6 | E14: 5 | G14: Now sweep IN X3 | H14: -0.9193198095 | I14: 0.6650884907 | J14: 0.2398437724 | K14: =K9-$I9*K$7*(1/$I$7) -> 0.211193938 | M14: Total | N14: 16 | O14: 719.7647059
B15: 2 | C15: 5 | D15: 8 | E15: 2
B16: 7 | C16: 8 | D16: 3 | E16: 4 | G16: X1, X2, and X3 have now been swept in | H16: =H11-(1/$J$13)*$J11*H$13 -> 1.331745093 | I16: -0.4817763974 | J16: =J11*-(1/$J$13) -> 0.388088217 | K16: =K11-(1/$J$13)*$J11*K$13 -> 1.012400351 | N16: Coefficients | O16: Standard Error | P16: t Stat | Q16: P-value
B17: 6 | C17: 9 | D17: 7 | E17: 8 | G17: Model: Y on X1, X2, & X3 | H17: -0.4817763974 | I17: 1.199888466 | J17: =J12*-(1/$J$13) -> 0.02163733918 | K17: -0.6598989096 | M17: Intercept | N17: 2.777777778 | O17: 2.835431322 | P17: 0.9796667464 | Q17: 0.3427880449
B18: 4 | C18: 6 | D18: 5 | E18: 8 | G18: R2 = 1 - .1457 = .8543 | H18: =H13*(1/$J$13) -> 0.388088217 | I18: =I13*(1/$J$13) -> 0.02163733918 | J18: =1/J13 -> 1.138693547 | K18: 0.2731085561 | M18: X1 | N18: 1.611111111 | O18: 0.4888161868 | P18: 3.295944681 | Q18: 0.004899476371
G19: Now sweep OUT X1 | H19: =H14-(1/$J$13)*$J14*H$13 -> -1.012400351 | I19: 0.6598989096 | J19: -0.2731085561 | K19: =K14-(1/$J$13)*$J14*K$13 -> 0.1456905517
A20: MEAN | B20: =AVERAGE(B2:B18) -> 5.176470588 | C20: =AVERAGE(C2:C18) -> 4.882352941 | D20: 5.352941176 | E20: 11.11764706 | M20: SUMMARY OUTPUT (Y on X1 & X2)
A21: S.D. | B21: =STDEVP(B2:B18) -> 2.617481819 | C21: =STDEVP(C2:C18) -> 2.609538002 | D21: 2.324832099 | E21: 6.506850263 | G21: X1 swept OUT only X2 and X3 remain IN | H21: =1/H16 -> 0.7508944508 | I21: =(1/$H$16)*I16 -> -0.3617632233 | J21: =(1/$H$16)*J16 -> 0.2914132886 | K21: 0.7602058059
G22: Model: Y on X2, & X3 | H22: =-(1/$H$16)*H17 -> 0.3617632233 | I22: =I17-I$16*$H17*(1/$H$16) -> 1.025599484 | J22: =J17-J$16*$H17*(1/$H$16) -> 0.1620333835 | K22: -0.2936496952 | M22: Regression Statistics
B23: ZX1 | C23: ZX2 | D23: ZX3 | E23: ZY | G23: R2 = 1 - .9153 = .0847 | H23: =-(1/$H$16)*H18 -> -0.2914132886 | I23: =I18-I$16*$H18*(1/$H$16) -> 0.1620333835 | J23: 1.025599484 | K23: -0.02191835974 | M23: Multiple R | N23: 0.8881475452
B24: =(B2-B$20)/B$21 -> -1.213559752 | C24: -1.487754897 | D24: 1.138602149 | E24: 0.750340448 | H24: 0.7602058059 | I24: 0.2936496952 | J24: 0.02191835974 | K24: 0.9153231768 | M24: R Square | N24: 0.788806062
B25: 0.3146266025 | C25: 1.577921861 | D25: -0.1518136198 | E25: -0.7865014334 | M25: Adjusted R Square | N25: 0.7586354994
B26: 1.07871978 | C26: -0.7213357077 | D26: -1.872367978 | E26: 0.5966562598 | M26: Standard Error | N26: 3.29512565
B27: 0.6966731912 | C27: 0.4282930765 | D27: 1.138602149 | E27: 0.750340448 | M27: Observations | N27: 17
B28: -0.449466575 | C28: -1.104545302 | D28: -0.1518136198 | E28: 0.5966562598
B29: 1.460766369 | C29: 1.194712266 | D29: -1.012090799 | E29: 0.9040246361 | M29: ANOVA
B30: -1.595606341 | C30: 0.04508348173 | D30: 0.2783249697 | E30: -1.554922374 | N30: df | O30: SS | P30: MS | Q30: F | R30: Significance F
B31: 0.3146266025 | C31: -0.338126113 | D31: 0.7084635591 | E31: 0.4429720717 | M31: Regression | N31: 2 | O31: 567.7547632 | P31: 283.8773816 | Q31: 26.14489073 | R31: 1.874002382e-05
B32: 1.07871978 | C32: 0.8115026712 | D32: -0.5819522093 | E32: 0.9040246361 | M32: Residual | N32: 14 | O32: 152.0099427 | P32: 10.85785305
B33: -0.06741998625 | C33: -0.7213357077 | D33: 1.568740738 | E33: 0.5966562598 | M33: Total | N33: 16 | O33: 719.7647059
B34: 1.460766369 | C34: -1.104545302 | D34: -0.1518136198 | E34: 2.133498141
B35: -0.8315131637 | C35: -0.338126113 | D35: -1.872367978 | E35: -0.9401856215 | N35: Coefficients | O35: Standard Error | P35: t Stat | Q35: P-value
B36: -1.595606341 | C36: -1.487754897 | D36: 0.2783249697 | E36: -0.9401856215 | M36: Intercept | N36: 7.384416128 | O36: 2.001195457 | P36: 3.690002444 | Q36: 0.002424852159
B37: -1.213559752 | C37: 0.04508348173 | D37: 1.138602149 | E37: -1.401238186 | M37: X1 | N37: 2.285355451 | O37: 0.3343950692 | P37: 6.834297698 | Q37: 8.136192534e-06
B38: 0.6966731912 | C38: 1.194712266 | D38: -1.012090799 | E38: -1.09386981 | M38: X2 | N38: -1.658389806 | O38: 0.3354130169 | P38: -4.944321545 | Q38: 0.0002157153795
B39: 0.3146266025 | C39: 1.577921861 | D39: 0.7084635591 | E39: -0.4791330571
B40: -0.449466575 | C40: 0.4282930765 | D40: -0.1518136198 | E40: -0.4791330571 | M40: SUMMARY OUTPUT (Y on X1, X2, & X3)
M42: Regression Statistics
M43: Multiple R | N43: 0.9242886174
M44: R Square | N44: 0.8543094483
M45: Adjusted R Square | N45: 0.8206885518
M46: Standard Error | N46: 2.84013701
M47: Observations | N47: 17
M49: ANOVA
N50: df | O50: SS | P50: MS | Q50: F | R50: Significance F
M51: Regression | N51: 3 | O51: 614.9017888 | P51: 204.9672629 | Q51: 25.41007338 | R51: 1.036874914e-05
M52: Residual | N52: 13 | O52: 104.8629171 | P52: 8.066378237
M53: Total | N53: 16 | O53: 719.7647059
N55: Coefficients | O55: Standard Error | P55: t Stat | Q55: P-value
M56: Intercept | N56: 2.031719912 | O56: 2.806624209 | P56: 0.7239016556 | Q56: 0.4819505779
M57: X1 | N57: 2.516746227 | O57: 0.3036978444 | P57: 8.287007215 | Q57: 1.517055038e-06
M58: X2 | N58: -1.645449651 | O58: 0.2891489664 | P58: -5.690664128 | Q58: 7.407672303e-05
M59: X3 | N59: 0.7643891704 | O59: 0.3161743737 | P59: 2.417618991 | Q59: 0.03104339057
M61: SUMMARY OUTPUT (Y on X2 & X3)
M63: Regression Statistics
M64: Multiple R | N64: 0.2909928233
M65: R Square | N65: 0.08467682321
M66: Adjusted R Square | N66: -0.04608363061
M67: Standard Error | N67: 6.859911063
M68: Observations | N68: 17
M70: ANOVA
N71: df | O71: SS | P71: MS | Q71: F | R71: Significance F
M72: Regression | N72: 2 | O72: 60.94738876 | P72: 30.47369438 | Q72: 0.6475721117 | R72: 0.5382960767
M73: Residual | N73: 14 | O73: 658.8173171 | P73: 47.05837979
M74: Total | N74: 16 | O74: 719.7647059
N76: Coefficients | O76: Standard Error | P76: t Stat | Q76: P-value
M77: Intercept | N77: 15.02094594 | O77: 5.623311473 | P77: 2.671192235 | Q77: 0.01825730537
M78: X2 | N78: -0.7322118302 | O78: 0.645682916 | P78: -1.134011466 | Q78: 0.2758350572
M79: X3 | N79: -0.06134614403 | O79: 0.7247551798 | P79: -0.0846439539 | Q79: 0.9337429591

Sheet program
A1: Number of Candidate Predictors | E1: 10
A2: Sample Size | E2: 60
X7: Subset | Z7: Mallows
A8: Predictor | B8: sum = | C8: =SUM(B9:V9) -> 0.5837290465 | X8: Size | Y8: R2 | Z8: Cp | AA8: 1 | AB8: 2 | AC8: 3 | AD8: 4 | AE8: 5 | AF8: 6 | AG8: 7 | AH8: 8 | AI8: 9 | AJ8: 10 | AK8: 11 | AL8: 12 | AM8: 13 | AN8: 14 | AO8: 15 | AP8: 16 | AQ8: 17 | AR8: 18 | AS8: 19 | AT8: 20
A9: Importance | B9: 0.1255642048 | C9: 0.1300312867 | D9: 0.1227193315 | E9: 0.005689556472 | F9: 0.02695475973 | G9: 0.008207506491 | H9: 0.0318770256 | I9: 0.02963824895 | J9: 0.009759263937 | K9: 0.09328786233 | X9: 1 | Y9: 0.3286417807 | Z9: 23.02677925 | AA9: 0 | AB9: 1 | AC9: 0 | AD9: 0 | AE9: 0 | AF9: 0 | AG9: 0 | AH9: 0 | AI9: 0 | AJ9: 0
X10: 2 | Y10: 0.4345468053 | Z10: 12.56050899 | AA10: 1 | AB10: 0 | AC10: 0 | AD10: 0 | AE10: 0 | AF10: 0 | AG10: 0 | AH10: 0 | AI10: 0 | AJ10: 1
X11: 3 | Y11: 0.4867773968 | Z11: 8.412352459 | AA11: 1 | AB11: 0 | AC11: 1 | AD11: 0 | AE11: 0 | AF11: 0 | AG11: 0 | AH11: 0 | AI11: 0 | AJ11: 1
B12: X1 | C12: X2 | D12: X3 | E12: X4 | F12: X5 | G12: X6 | H12: X7 | I12: X8 | J12: X9 | K12: X10 | L12: X11 | M12: X12 | N12: X13 | O12: X14 | P12: X15 | Q12: X16 | R12: X17 | S12: X18 | T12: X19 | U12: X20 | V12: Y | X12: 4 | Y12: 0.5222799613 | Z12: 6.233281956 | AA12: 1 | AB12: 0 | AC12: 1 | AD12: 0 | AE12: 1 | AF12: 0 | AG12: 0 | AH12: 0 | AI12: 0 | AJ12: 1
X13: 5 | Y13: 0.5431889477 | Z13: 5.772047697 | AA13: 1 | AB13: 0 | AC13: 1 | AD13: 0 | AE13: 1 | AF13: 0 | AG13: 0 | AH13: 1 | AI13: 0 | AJ13: 1
X14: 6 | Y14: 0.5582211577 | Z14: 6.002579315 | AA14: 1 | AB14: 1 | AC14: 1 | AD14: 0 | AE14: 1 | AF14: 0 | AG14: 0 | AH14: 1 | AI14: 0 | AJ14: 1
A15: Case 1 | B15: 5 | C15: 6 | D15: 5 | E15: 3 | F15: 3 | G15: 3 | H15: 3 | I15: 4 | J15: 6 | K15: 6 | V15: 85 | X15: 7 | Y15: 0.5684675082 | Z15: 6.796463028 | AA15: 1 | AB15: 1 | AC15: 1 | AD15: 0 | AE15: 1 | AF15: 0 | AG15: 0 | AH15: 1 | AI15: 1 | AJ15: 1
A16: Case 2 | B16: 5 | C16: 5 | D16: 5 | E16: 4 | F16: 4 | G16: 3 | H16: 3 | I16: 5 | J16: 6 | K16: 6 | V16: 78 | X16: 8 | Y16: 0.5818796108 | Z16: 7.217700392 | AA16: 1 | AB16: 1 | AC16: 1 | AD16: 0 | AE16: 1 | AF16: 1 | AG16: 0 | AH16: 1 | AI16: 1 | AJ16: 1
A17: Case 3 | B17: 6 | C17: 6 | D17: 5 | E17: 4 | F17: 3 | G17: 4 | H17: 4 | I17: 3 | J17: 6 | K17: 6 | V17: 84 | X17: 9 | Y17: 0.5837290066 | Z17: 9.000004696 | AA17: 1 | AB17: 1 | AC17: 1 | AD17: 0 | AE17: 1 | AF17: 1 | AG17: 1 | AH17: 1 | AI17: 1 | AJ17: 1
A18: Case 4 | B18: 6 | C18: 6 | D18: 5 | E18: 3 | F18: 4 | G18: 4 | H18: 4 | I18: 5 | J18: 7 | K18: 6 | V18: 91 | X18: 10 | Y18: 0.5837290465 | Z18: 11 | AA18: 1 | AB18: 1 | AC18: 1 | AD18: 1 | AE18: 1 | AF18: 1 | AG18: 1 | AH18: 1 | AI18: 1 | AJ18: 1
A19: Case 5 | B19: 6 | C19: 6 | D19: 7 | E19: 3 | F19: 3 | G19: 3 | H19: 5 | I19: 4 | J19: 6 | K19: 7 | V19: 86 | X19: 11
A20: Case 6 | B20: 5 | C20: 5 | D20: 5 | E20: 4 | F20: 4 | G20: 4 | H20: 5 | I20: 4 | J20: 6 | K20: 6 | V20: 73 | X20: 12
A21: Case 7 | B21: 6 | C21: 6 | D21: 7 | E21: 4 | F21: 4 | G21: 4 | H21: 3 | I21: 4 | J21: 6 | K21: 7 | V21: 90 | X21: 13
A22: Case 8 | B22: 2 | C22: 7 | D22: 7 | E22: 4 | F22: 3 | G22: 3 | H22: 5 | I22: 5 | J22: 7 | K22: 6 | V22: 94 | X22: 14
A23: Case 9 | B23: 5 | C23: 7 | D23: 5 | E23: 4 | F23: 3 | G23: 4 | H23: 5 | I23: 3 | J23: 7 | K23: 6 | V23: 77 | X23: 15
A24: Case 10 | B24: 6 | C24: 6 | D24: 6 | E24: 4 | F24: 3 | G24: 3 | H24: 3 | I24: 5 | J24: 7 | K24: 6 | V24: 91 | X24: 16
A25: Case 11 | B25: 5 | C25: 7 | D25: 5 | E25: 4 | F25: 3 | G25: 5 | H25: 4 | I25: 4 | J25: 2 | K25: 3 | V25: 89 | X25: 17
A26: Case 12 | B26: 6 | C26: 3 | D26: 5 | E26: 5 | F26: 4 | G26: 3 | H26: 3 | I26: 4 | J26: 4 | K26: 4 | V26: 96 | X26: 18
A27: Case 13 | B27: 7 | C27: 7 | D27: 7 | E27: 5 | F27: 3 | G27: 4 | H27: 5 | I27: 3 | J27: 4 | K27: 3 | V27: 92 | X27: 19
A28: Case 14 | B28: 7 | C28: 6 | D28: 6 | E28: 5 | F28: 4 | G28: 3 | H28: 4 | I28: 4 | J28: 4 | K28: 3 | V28: 88 | X28: 20
A29: Case 15 | B29: 6 | C29: 7 | D29: 5 | E29: 5 | F29: 4 | G29: 5 | H29: 4 | I29: 4 | J29: 3 | K29: 3 | V29: 78
A30: Case 16 | B30: 7 | C30: 5 | D30: 5 | E30: 5 | F30: 3 | G30: 5 | H30: 4 | I30: 4 | J30: 3 | K30: 3 | V30: 68
A31: Case 17 | B31: 6 | C31: 7 | D31: 6 | E31: 3 | F31: 4 | G31: 3 | H31: 3 | I31: 5 | J31: 4 | K31: 2 | V31: 70
A32: Case 18 | B32: 6 | C32: 6 | D32: 6 | E32: 4 | F32: 4 | G32: 4 | H32: 5 | I32: 5 | J32: 2 | K32: 3 | V32: 91
A33: Case 19 | B33: 7 | C33: 5 | D33: 6 | E33: 4 | F33: 5 | G33: 3 | H33: 3 | I33: 5 | J33: 4 | K33: 4 | V33: 77
A34: Case 20 | B34: 5 | C34: 5 | D34: 7 | E34: 5 | F34: 3 | G34: 3 | H34: 5 | I34: 5 | J34: 2 | K34: 3 | V34: 65
A35: Case 21 | B35: 4 | C35: 4 | D35: 3 | E35: 5 | F35: 4 | G35: 4 | H35: 2 | I35: 1 | J35: 4 | K35: 4 | V35: 63
A36: Case 22 | B36: 4 | C36: 4 | D36: 5 | E36: 5 | F36: 5 | G36: 4 | H36: 3 | I36: 3 | J36: 4 | K36: 3 | V36: 59
A37: Case 23 | B37: 5 | C37: 3 | D37: 4 | E37: 3 | F37: 3 | G37: 3 | H37: 3 | I37: 1 | J37: 4 | K37: 3 | V37: 82
A38: Case 24 | B38: 4 | C38: 3 | D38: 5 | E38: 4 | F38: 5 | G38: 5 | H38: 1 | I38: 2 | J38: 4 | K38: 2 | V38: 56
A39: Case 25 | B39: 4 | C39: 4 | D39: 3 | E39: 4 | F39: 4 | G39: 5 | H39: 1 | I39: 1 | J39: 2 | K39: 3 | V39: 64
A40: Case 26 | B40: 5 | C40: 3 | D40: 3 | E40: 4 | F40: 4 | G40: 4 | H40: 3 | I40: 2 | J40: 3 | K40: 3 | V40: 53
A41: Case 27 | B41: 4 | C41: 3 | D41: 5 | E41: 3 | F41: 5 | G41: 4 | H41: 1 | I41: 2 | J41: 4 | K41: 3 | V41: 76
A42: Case 28 | B42: 3 | C42: 4 | D42: 3 | E42: 5 | F42: 3 | G42: 4 | H42: 3 | I42: 1 | J42: 2 | K42: 2 | V42: 51
A43: Case 29 | B43: 3 | C43: 3 | D43: 4 | E43: 5 | F43: 4 | G43: 5 | H43: 3 | I43: 3 | J43: 3 | K43: 3 | V43: 65
A44: Case 30 | B44: 4 | C44: 3 | D44: 4 | E44: 3 | F44: 4 | G44: 3 | H44: 1 | I44: 1 | J44: 3 | K44: 4 | V44: 82
A45: Case 31 | B45: 4 | C45: 4 | D45: 4 | E45: 6 | F45: 7 | G45: 5 | H45: 4 | I45: 4 | J45: 6 | K45: 6 | V45: 49
A46: Case 32 | B46: 3 | C46: 5 | D46: 5 | E46: 7 | F46: 6 | G46: 6 | H46: 5 | I46: 5 | J46: 5 | K46: 6 | V46: 78
A47: Case 33 | B47: 5 | C47: 5 | D47: 4 | E47: 6 | F47: 6 | G47: 7 | H47: 4 | I47: 5 | J47: 5 | K47: 6 | V47: 64
A48: Case 34 | B48: 3 | C48: 5 | D48: 5 | E48: 5 | F48: 7 | G48: 6 | H48: 4 | I48: 4 | J48: 5 | K48: 6 | V48: 79
A49: Case 35 | B49: 5 | C49: 3 | D49: 4 | E49: 5 | F49: 7 | G49: 5 | H49: 4 | I49: 5 | J49: 6 | K49: 5 | V49: 73
A50: Case 36 | B50: 3 | C50: 4 | D50: 4 | E50: 5 | F50: 6 | G50: 6 | H50: 5 | I50: 5 | J50: 5 | K50: 5 | V50: 55
A51: Case 37 | B51: 4 | C51: 3 | D51: 5 | E51: 5 | F51: 6 | G51: 6 | H51: 5 | I51: 4 | J51: 5 | K51: 6 | V51: 68
A52: Case 38 | B52: 4 | C52: 3 | D52: 3 | E52: 6 | F52: 7 | G52: 5 | H52: 4 | I52: 4 | J52: 5 | K52: 5 | V52: 71
A53: Case 39 | B53: 4 | C53: 4 | D53: 3 | E53: 6 | F53: 5 | G53: 6 | H53: 5 | I53: 4 | J53: 5 | K53: 5 | V53: 56
A54: Case 40 | B54: 4 | C54: 5 | D54: 4 | E54: 6 | F54: 5 | G54: 7 | H54: 4 | I54: 5 | J54: 6 | K54: 6 | V54: 48
A55: Case 41 | B55: 2 | C55: 2 | D55: 3 | E55: 6 | F55: 5 | G55: 6 | H55: 7 | I55: 6 | J55: 6 | K55: 5 | V55: 53
A56: Case 42 | B56: 1 | C56: 1 | D56: 3 | E56: 6 | F56: 5 | G56: 6 | H56: 6 | I56: 7 | J56: 6 | K56: 5 | V56: 57
A57: Case 43 | B57: 2 | C57: 2 | D57: 2 | E57: 5 | F57: 7 | G57: 6 | H57: 7 | I57: 5 | J57: 5 | K57: 5 | V57: 76
A58: Case 44 | B58: 3 | C58: 3 | D58: 1 | E58: 7 | F58: 7 | G58: 5 | H58: 7 | I58: 6 | J58: 6 | K58: 5 | V58: 78
A59: Case 45 | B59: 2 | C59: 3 | D59: 2 | E59: 7 | F59: 7 | G59: 7 | H59: 7 | I59: 6 | J59: 6 | K59: 5 | V59: 65
A60: Case 46 | B60: 2 | C60: 1 | D60: 1 | E60: 6 | F60: 6 | G60: 5 | H60: 5 | I60: 5 | J60: 2 | K60: 5 | V60: 39
A61: Case 47 | B61: 3 | C61: 3 | D61: 1 | E61: 6 | F61: 5 | G61: 5 | H61: 5 | I61: 6 | J61: 4 | K61: 5 | V61: 66
A62: Case 48 | B62: 3 | C62: 1 | D62: 1 | E62: 6 | F62: 6 | G62: 7 | H62: 6 | I62: 5 | J62: 1 | K62: 6 | V62: 70
A63: Case 49 | B63: 1 | C63: 2 | D63: 2 | E63: 6 | F63: 7 | G63: 5 | H63: 7 | I63: 6 | J63: 1 | K63: 6 | V63: 60
A64: Case 50 | B64: 1 | C64: 3 | D64: 3 | E64: 6 | F64: 6 | G64: 6 | H64: 7 | I64: 5 | J64: 7 | K64: 4 | V64: 50
A65: Case 51 | B65: 4 | C65: 4 | D65: 3 | E65: 2 | F65: 3 | G65: 2 | H65: 5 | I65: 5 | J65: 7 | K65: 3 | V65: 63
A66: Case 52 | B66: 3 | C66: 3 | D66: 3 | E66: 3 | F66: 1 | G66: 1 | H66: 5 | I66: 5 | J66: 6 | K66: 2 | V66: 31
A67: Case 53 | B67: 3 | C67: 3 | D67: 3 | E67: 2 | F67: 2 | G67: 3 | H67: 7 | I67: 7 | J67: 4 | K67: 4 | V67: 44
A68: Case 54 | B68: 4 | C68: 3 | D68: 3 | E68: 3 | F68: 1 | G68: 3 | H68: 6 | I68: 7 | J68: 5 | K68: 5 | V68: 50
A69: Case 55 | B69: 3 | C69: 3 | D69: 4 | E69: 2 | F69: 1 | G69: 1 | H69: 6 | I69: 6 | J69: 5 | K69: 3 | V69: 48
A70: Case 56 | B70: 3 | C70: 3 | D70: 3 | E70: 2 | F70: 3 | G70: 2 | H70: 6 | I70: 7 | J70: 6 | K70: 6 | V70: 62
A71: Case 57 | B71: 4 | C71: 3 | D71: 3 | E71: 3 | F71: 3 | G71: 2 | H71: 7 | I71: 6 | J71: 6 | K71: 6 | V71: 66
A72: Case 58 | B72: 3 | C72: 3 | D72: 4 | E72: 3 | F72: 3 | G72: 3 | H72: 6 | I72: 5 | J72: 6 | K72: 6 | V72: 51
A73: Case 59 | B73: 3 | C73: 3 | D73: 3 | E73: 2 | F73: 3 | G73: 2 | H73: 7 | I73: 7 | J73: 7 | K73: 2 | V73: 39
A74: Case 60 | B74: 4 | C74: 4 | D74: 4 | E74: 2 | F74: 2 | G74: 1 | H74: 7 | I74: 7 | J74: 6 | K74: 1 | V74: 36
A75: Case 61
A76: Case 62
A77: Case 63
A78: Case 64
A79: Case 65
A80: Case 66
A81: Case 67
A82: Case 68
A83: Case 69
A84: Case 70
A85: Case 71
A86: Case 72
A87: Case 73
A88: Case 74
A89: Case 75
A90: Case 76
A91: Case 77
A92: Case 78
A93: Case 79
A94: Case 80
A95: Case 81
A96: Case 82
A97: Case 83
A98: Case 84
A99: Case 85
A100: Case 86
A101: Case 87
A102: Case 88
A103: Case 89
A104: Case 90
A105: Case 91
A106: Case 92
A107: Case 93
A108: Case 94
A109: Case 95
A110: Case 96
A111: Case 97
A112: Case 98
A113: Case 99
A114: Case 100
A115: Case 101
A116: Case 102
A117: Case 103
A118: Case 104
A119: Case 105
A120: Case 106
A121: Case 107
A122: Case 108
A123: Case 109
A124: Case 110
A125: Case 111
A126: Case 112
A127: Case 113
A128: Case 114
A129: Case 115
A130: Case 116
A131: Case 117
A132: Case 118
A133: Case 119
A134: Case 120
A135: Case 121
A136: Case 122
A137: Case 123
A138: Case 124
A139: Case 125
A140: Case 126
A141: Case 127
A142: Case 128
A143: Case 129
A144: Case 130
A145: Case 131
A146: Case 132
A147: Case 133
A148: Case 134
A149: Case 135
A150: Case 136
A151: Case 137
A152: Case 138
A153: Case 139
A154: Case 140
A155: Case 141
A156: Case 142
A157: Case 143
A158: Case 144
A159: Case 145
A160: Case 146
A161: Case 147
A162: Case 148
A163: Case 149
A164: Case 150
A165: Case 151
A166: Case 152
A167: Case 153
A168: Case 154
A169: Case 155
A170: Case 156
A171: Case 157
A172: Case 158
A173: Case 159
A174: Case 160
A175: Case 161
A176: Case 162
A177: Case 163
A178: Case 164
A179: Case 165
A180: Case 166
A181: Case 167
A182: Case 168
A183: Case 169
A184: Case 170
A185: Case 171
A186: Case 172
A187: Case 173
A188: Case 174
A189: Case 175
A190: Case 176
A191: Case 177
A192: Case 178
A193: Case 179
A194: Case 180
A195: Case 181
A196: Case 182
A197: Case 183
A198: Case 184
A199: Case 185
A200: Case 186
A201: Case 187
A202: Case 188
A203: Case 189
A204: Case 190
... 734 more rows
